bitfinex/quotes_SOLUSD_20241231
["timestamp","ask_amount","ask_price","bid_price","bid_amount"]
[1735664464055,8.1719,198.88,198.82,9.93305567]
[1735664464263,23.776884,198.87,198.82,9.93305567]
[1735664464461,23.776884,198.87,198.8,9.93305567]
[1735664465059,23.776884,198.87,198.81,9.93305567]
[1735664465365,23.776884,198.87,198.8,9.93305567]
[1735664465754,23.776884,198.87,198.79,9.93305567]
[1735664466576,23.776884,198.87,198.78,9.93305567]
[1735664467282,23.776884,198.87,198.77,9.93305567]
[1735664467579,23.776884,198.85,198.71,22.29143676]
[1735664467776,23.776884,198.85,198.77,9.93305567]
[1735664467989,23.776884,198.85,198.76,9.93305567]
[1735664469142,6.2754,198.84,198.76,9.93305567]
[1735664469347,6.2754,198.84,198.77,9.93305567]
[1735664469586,23.776884,198.83,198.76,9.93305567]
[1735664469759,23.776884,198.83,198.71,12.5811]
[1735664470006,6.2754,198.84,198.76,9.93305567]
[1735664470007,23.776884,198.81,198.76,9.93305567]
[1735664470275,1.9201,198.82,198.76,9.93305567]
[1735664470845,1.9201,198.82,198.77,9.93305567]
[1735664471241,1.9201,198.82,198.76,9.93305567]
[1735664471981,1.9201,198.82,198.75,9.93305567]
[1735664472350,1.9201,198.82,198.74,9.93305567]
[1735664472553,1.9201,198.82,198.75,9.93305567]
[1735664472947,1.9201,198.82,198.74,9.93305567]
[1735664473171,23.776884,198.81,198.73,9.93305567]
[1735664473366,23.776884,198.79,198.72,9.93305567]
[1735664473573,23.776884,198.77,198.65,12.5849]
[1735664473965,23.776884,198.77,198.69,9.93305567]
[1735664474959,23.776884,198.77,198.68,9.93305567]
[1735664475384,23.776884,198.77,198.69,9.93305567]
[1735664476072,23.776884,198.77,198.7,9.93305567]
[1735664476273,1.9201,198.78,198.72,9.93305567]
[1735664476485,1.9201,198.78,198.74,9.93305567]
[1735664476786,1.9201,198.78,198.75,9.93305567]
[1735664477457,1.9201,198.78,198.74,9.93305567]
[1735664479088,1.9201,198.78,198.75,9.93305567]
[1735664479952,1.9201,198.78,198.74,9.93305567]
[1735664482491,1.9201,198.78,198.75,9.93305567]
[1735664483068,6.3268,198.8,198.75,9.93305567]
[1735664483965,6.3268,198.8,198.74,9.93305567]
[1735664484462,6.3268,198.8,198.73,9.93305567]
[1735664484966,23.776884,198.79,198.73,9.93305567]
[1735664485167,23.776884,198.79,198.75,9.93305567]
[1735664485373,23.776884,198.79,198.74,9.93305567]
[1735664485887,23.776884,198.79,198.73,9.93305567]
[1735664488594,23.776884,198.79,198.72,9.93305567]
[1735664488968,23.776884,198.79,198.73,9.93305567]
[1735664489168,23.776884,198.79,198.71,9.93305567]
[1735664491192,23.776884,198.79,198.64,20.0]
[1735664491378,1.9461,198.74,198.63,14.4715]
[1735664491700,23.776884,198.73,198.67,9.93305567]
[1735664492373,23.776884,198.73,198.63,20.0]
[1735664492998,23.776884,198.73,198.68,9.93305567]
[1735664493188,23.776884,198.73,198.63,20.0]
[1735664493492,23.776884,198.73,198.69,9.93305567]
[1735664495289,23.776884,198.73,198.63,20.0]
[1735664495499,23.776884,198.73,198.68,9.93305567]
[1735664496102,23.776884,198.73,198.69,9.93305567]
[1735664498105,23.776884,198.73,198.68,9.93305567]
[1735664498269,23.776884,198.73,198.69,9.93305567]
[1735664498591,1.9461,198.74,198.72,9.93305567]
[1735664498798,1.9461,198.74,198.7,9.93305567]
[1735664499168,23.776884,198.73,198.7,9.93305567]
[1735664499391,23.776884,198.75,198.71,9.93305567]
[1735664501183,23.776884,198.75,198.7,9.93305567]
[1735664501390,23.776884,198.75,198.69,9.93305567]
[1735664501597,23.776884,198.75,198.67,9.93305567]
[1735664501774,23.776884,198.75,198.68,9.93305567]
[1735664502588,23.776884,198.75,198.69,9.93305567]
[1735664502775,23.776884,198.75,198.71,9.93305567]
[1735664503176,23.776884,198.75,198.7,9.93305567]
[1735664507513,23.776884,198.75,198.69,9.93305567]
[1735664508308,23.776884,198.75,198.63,20.0]
[1735664508494,23.776884,198.75,198.69,9.93305567]
[1735664509401,23.776884,198.73,198.6,7.86499457]
[1735664509584,23.776884,198.71,198.64,9.93305567]
[1735664509793,23.776884,198.71,198.6,7.86499457]
[1735664509985,23.776884,198.71,198.64,9.93305567]
[1735664510184,23.776884,198.71,198.58,1.8957]
[1735664510388,23.776884,198.71,198.62,9.93305567]
[1735664510802,23.776884,198.71,198.63,9.93305567]
[1735664513814,11.3839,198.72,198.68,9.93305567]
[1735664513815,6.3517,198.72,198.68,9.93305567]
[1735664513990,6.3517,198.72,198.69,9.93305567]
[1735664514194,6.3517,198.72,198.7,9.93305567]
[1735664514699,6.3517,198.72,198.69,9.93305567]
[1735664515709,6.3517,198.72,198.68,9.93305567]
[1735664517185,6.3517,198.72,198.69,9.93305567]
[1735664520925,6.3517,198.72,198.71,9.93305567]
[1735664521302,6.3517,198.72,198.7,9.93305567]
[1735664521621,6.3517,198.72,198.64,20.45009457]
[1735664521622,6.3517,198.72,198.71,9.93305567]
[1735664524424,23.776884,198.71,198.69,9.93305567]
[1735664524627,23.776884,198.71,198.68,9.93305567]
[1735664524793,23.776884,198.71,198.67,9.93305567]
[1735664526019,23.776884,198.71,198.66,9.93305567]
[1735664526826,23.776884,198.71,198.65,9.93305567]
[1735664527814,23.776884,198.71,198.61,7.86499457]
[1735664528020,23.776884,198.71,198.64,9.93305567]
[1735664528221,23.776884,198.71,198.63,9.93305567]
[1735664529247,23.776884,198.71,198.62,9.93305567]
[1735664529538,23.776884,198.69,198.62,9.93305567]
[1735664530511,23.776884,198.69,198.63,9.93305567]
[1735664531698,23.776884,198.69,198.58,7.86499457]
[1735664531923,23.776884,198.69,198.59,9.93305567]
[1735664532225,25.638084,198.65,198.58,7.86499457]
[1735664532432,20.0,198.62,198.58,7.86499457]
[1735664532595,20.0,198.62,198.55,9.93305567]
[1735664532596,23.776884,198.61,198.55,9.93305567]
[1735664532797,23.776884,198.59,198.54,9.93305567]
[1735664533002,23.776884,198.59,198.55,9.93305567]
[1735664533221,23.776884,198.59,198.56,9.93305567]
[1735664535530,6.6223,198.6,198.57,9.93305567]
[1735664537431,6.6223,198.6,198.5,14.4842]
[1735664537600,6.6223,198.6,198.57,9.93305567]
[1735664539239,6.6223,198.6,198.5,14.4842]
[1735664539240,6.6223,198.6,198.56,9.93305567]
[1735664539536,23.776884,198.59,198.54,9.93305567]
[1735664540034,23.776884,198.59,198.5,1.8903]
[1735664540210,23.776884,198.59,198.53,9.93305567]
[1735664541732,23.776884,198.59,198.54,9.93305567]
[1735664541938,23.776884,198.59,198.5,20.0]
[1735664542132,23.776884,198.59,198.54,9.93305567]
[1735664542838,23.776884,198.59,198.5,20.0]
[1735664543136,23.776884,198.59,198.54,9.93305567]
[1735664543525,23.776884,198.59,198.53,9.93305567]
[1735664544112,23.776884,198.59,198.54,9.93305567]
[1735664544421,23.776884,198.57,198.5,20.0]
[1735664544621,23.776884,198.57,198.53,9.93305567]
[1735664545056,23.776884,198.57,198.54,9.93305567]
[1735664545528,23.776884,198.57,198.55,9.93305567]
[1735664545716,6.6223,198.6,198.56,9.93305567]
[1735664545916,6.6223,198.6,198.5,32.5943]
[1735664545917,6.6223,198.6,198.57,9.93305567]
[1735664549228,6.6223,198.6,198.58,9.93305567]
[1735664549944,6.6223,198.6,198.57,9.93305567]
[1735664551145,6.6223,198.6,198.5,32.5943]
[1735664551346,6.6223,198.6,198.57,9.93305567]
[1735664551746,6.6223,198.6,198.56,9.93305567]
[1735664552645,6.6223,198.6,198.57,9.93305567]
[1735664552945,6.6223,198.6,198.58,9.93305567]
[1735664553331,1.8272,198.63,198.59,9.93305567]
[1735664553556,1.8272,198.63,198.6,9.93305567]
[1735664554132,23.776884,198.62,198.59,9.93305567]
[1735664554850,23.776884,198.62,198.6,9.93305567]
[1735664555019,1.8272,198.63,198.6,9.93305567]
[1735664557440,23.776884,198.62,198.58,9.93305567]
[1735664557948,23.776884,198.62,198.59,9.93305567]
[1735664558152,23.776884,198.62,198.58,9.93305567]
[1735664558542,23.776884,198.62,198.52,2.0165]
[1735664558861,23.776884,198.62,198.56,9.93305567]
[1735664559043,23.776884,198.62,198.55,9.93305567]
[1735664559352,23.776884,198.62,198.56,9.93305567]
[1735664560166,23.776884,198.62,198.55,9.93305567]
[1735664560362,23.776884,198.62,198.56,9.93305567]
[1735664562051,23.776884,198.62,198.51,20.0]
[1735664562350,23.776884,198.62,198.52,9.93305567]
[1735664562351,23.776884,198.6,198.52,9.93305567]
[1735664562576,23.776884,198.6,198.51,9.93305567]
[1735664563362,23.776884,198.58,198.5,9.93305567]
[1735664564069,23.776884,198.56,198.45,12.5975]
[1735664564270,23.776884,198.56,198.5,9.93305567]
[1735664565070,23.776884,198.56,198.49,9.93305567]
[1735664565370,23.776884,198.54,198.48,9.93305567]
[1735664565671,23.776884,198.54,198.41,1.8295]
[1735664565672,23.776884,198.52,198.46,9.93305567]
[1735664565851,23.776884,198.52,198.45,9.93305567]
[1735664566860,23.776884,198.52,198.46,9.93305567]
[1735664567052,23.776884,198.52,198.48,9.93305567]
[1735664567596,23.776884,198.52,198.47,9.93305567]
[1735664568062,23.776884,198.52,198.46,9.93305567]
[1735664568247,23.776884,198.52,198.41,12.5999]
[1735664568449,23.776884,198.52,198.45,9.93305567]
[1735664569275,23.776884,198.52,198.46,9.93305567]
[1735664569445,23.776884,198.52,198.41,20.0]
[1735664569645,23.776884,198.52,198.45,9.93305567]
[1735664569951,23.776884,198.52,198.44,9.93305567]
[1735664570468,6.3215,198.48,198.34,20.46929457]
[1735664570651,23.776884,198.47,198.39,9.93305567]
[1735664570860,23.776884,198.47,198.37,20.0]
[1735664571161,23.776884,198.47,198.39,9.93305567]
[1735664571987,23.776884,198.47,198.4,9.93305567]
[1735664572394,23.776884,198.47,198.39,9.93305567]
[1735664572582,23.776884,198.47,198.3,9.69449457]
[1735664572781,23.776884,198.47,198.39,9.93305567]
[1735664573489,23.776884,198.47,198.37,9.93305567]
[1735664575011,23.776884,198.47,198.38,9.93305567]
[1735664575210,23.776884,198.47,198.4,9.93305567]
[1735664575704,23.776884,198.47,198.39,9.78172025]
[1735664576096,23.776884,198.47,198.4,9.78172025]
[1735664576475,6.3215,198.48,198.43,9.78172025]
[1735664576680,6.3215,198.48,198.46,9.78172025]
[1735664576912,1.8681,198.51,198.47,9.78172025]
[1735664577410,6.5956,198.53,198.48,9.78172025]
[1735664577626,6.5956,198.53,198.5,9.78172025]
[1735664577909,23.776884,198.55,198.51,9.78172025]
[1735664578273,23.776884,198.55,198.5,9.78172025]
[1735664578701,1.8353,198.56,198.51,9.78172025]
[1735664580296,23.776884,198.57,198.52,9.78172025]
[1735664580495,6.5956,198.58,198.52,9.78172025]
[1735664580699,23.776884,198.57,198.52,9.78172025]
[1735664581800,23.776884,198.57,198.51,9.78172025]
[1735664582118,23.776884,198.57,198.53,9.78172025]
[1735664583001,6.5956,198.58,198.54,9.78172025]
[1735664583326,1.8353,198.61,198.56,9.78172025]
[1735664584216,6.5956,198.63,198.58,9.78172025]
[1735664584728,23.776884,198.62,198.58,9.78172025]
[1735664584930,6.5956,198.63,198.58,9.78172025]
[1735664585142,6.5956,198.63,198.6,9.78172025]
[1735664585540,6.5956,198.63,198.61,9.78172025]
[1735664586134,6.5956,198.69,198.62,9.78172025]
[1735664586430,6.5956,198.69,198.63,9.78172025]
[1735664586637,6.5956,198.69,198.64,9.78172025]
[1735664587137,23.776884,198.68,198.63,9.78172025]
[1735664587341,6.5956,198.69,198.63,9.78172025]
[1735664587932,23.776884,198.68,198.63,9.78172025]
[1735664588334,23.776884,198.68,198.64,9.78172025]
[1735664589210,6.5956,198.69,198.64,9.78172025]
[1735664589413,6.5956,198.69,198.65,9.78172025]
[1735664589721,6.5956,198.69,198.63,9.78172025]
[1735664589922,6.5956,198.69,198.64,9.78172025]
[1735664591226,6.5956,198.69,198.65,9.78172025]
[1735664592306,6.5956,198.69,198.64,9.78172025]
[1735664592814,6.5956,198.69,198.6,20.0]
[1735664593140,6.5956,198.69,198.64,9.78172025]
[1735664593537,6.5956,198.69,198.63,9.78172025]
[1735664593717,6.5956,198.69,198.64,9.78172025]
[1735664596518,6.5956,198.69,198.54,14.5904]
[1735664596519,23.776884,198.68,198.54,14.5904]
[1735664596718,23.776884,198.68,198.59,9.78172025]
[1735664596918,23.776884,198.64,198.51,20.45859457]
[1735664597121,6.6095,198.64,198.55,9.78172025]
[1735664597950,6.6095,198.64,198.54,9.78172025]
[1735664598244,30.386384,198.64,198.54,9.78172025]
[1735664598444,23.776884,198.63,198.54,9.78172025]
[1735664598741,28.811284,198.63,198.53,9.78172025]
[1735664600218,1.8711,198.62,198.54,9.78172025]
[1735664600629,23.776884,198.61,198.52,9.78172025]
[1735664600926,23.776884,198.61,198.51,9.78172025]
[1735664601543,23.776884,198.61,198.52,9.78172025]
[1735664601750,23.776884,198.61,198.53,9.78172025]
[1735664601930,23.776884,198.61,198.54,9.78172025]
[1735664602330,1.8711,198.62,198.56,9.78172025]
[1735664602517,6.6095,198.64,198.6,9.78172025]
[1735664602723,6.6095,198.64,198.62,9.78172025]
[1735664603029,6.6095,198.69,198.63,9.78172025]
[1735664603229,6.6095,198.69,198.64,9.78172025]
[1735664603528,23.776884,198.68,198.63,9.78172025]
[1735664603920,6.6095,198.69,198.63,9.78172025]
[1735664604747,6.6095,198.69,198.64,9.78172025]
[1735664605351,23.776884,198.68,198.64,9.78172025]
[1735664605538,23.776884,198.68,198.57,12.59]
[1735664605539,23.776884,198.68,198.65,9.78172025]
[1735664606226,23.776884,198.68,198.64,15.24456917]
[1735664606658,23.776884,198.68,198.57,12.59]
[1735664606659,6.6095,198.69,198.65,15.24456917]
[1735664606965,8.0454,198.77,198.68,15.24456917]
[1735664607151,23.776884,198.76,198.68,15.24456917]
[1735664607532,23.776884,198.76,198.66,15.24456917]
[1735664608045,28.808284,198.76,198.66,15.24456917]
[1735664608254,28.808284,198.76,198.65,15.24456917]
[1735664609030,28.808284,198.76,198.67,15.24456917]
[1735664610353,5.0314,198.76,198.67,15.24456917]
[1735664610658,23.776884,198.75,198.67,15.24456917]
[1735664610953,23.776884,198.75,198.68,15.24456917]
[1735664611323,23.776884,198.75,198.67,15.24456917]
[1735664612450,8.0454,198.77,198.68,15.24456917]
[1735664612635,8.0454,198.77,198.7,15.24456917]
[1735664613036,23.776884,198.76,198.7,15.24456917]
[1735664613335,23.776884,198.76,198.69,15.24456917]
[1735664614131,23.776884,198.76,198.71,15.24456917]
[1735664616659,23.776884,198.76,198.7,15.24456917]
[1735664617029,23.776884,198.76,198.71,15.24456917]
[1735664618831,8.0454,198.77,198.71,15.24456917]
[1735664618832,6.025,198.77,198.71,15.24456917]
[1735664619233,23.776884,198.76,198.71,15.24456917]
[1735664619648,23.776884,198.76,198.7,15.24456917]
[1735664619966,1.8491,198.75,198.65,15.24456917]
[1735664620129,1.8491,198.75,198.64,15.24456917]
[1735664620328,23.776884,198.73,198.62,15.24456917]
[1735664620733,23.776884,198.73,198.6,15.24456917]
[1735664621065,23.776884,198.7,198.61,15.24456917]
[1735664621361,23.776884,198.7,198.62,15.24456917]
[1735664621534,23.776884,198.7,198.63,15.24456917]
[1735664622048,23.776884,198.7,198.62,15.24456917]
[1735664622251,6.3632,198.74,198.65,15.24456917]
[1735664623840,23.776884,198.73,198.64,15.24456917]
[1735664625163,23.776884,198.73,198.65,15.24456917]
[1735664625946,23.776884,198.73,198.67,15.24456917]
[1735664626147,6.3632,198.74,198.69,15.24456917]
[1735664626362,23.776884,198.73,198.69,9.75248924]
[1735664626746,6.3632,198.74,198.69,9.75248924]
[1735664626950,6.3632,198.74,198.7,9.75248924]
[1735664627143,6.3632,198.74,198.69,9.75248924]
[1735664627337,6.3632,198.74,198.68,9.75248924]
[1735664627676,23.776884,198.73,198.68,9.75248924]
[1735664628037,23.776884,198.73,198.67,9.75248924]
[1735664628743,23.776884,198.73,198.66,9.75248924]
[1735664629554,23.776884,198.73,198.67,9.75248924]
[1735664631665,23.776884,198.73,198.68,9.75248924]
[1735664631854,23.776884,198.73,198.67,9.75248924]
[1735664632443,23.776884,198.73,198.66,9.75248924]
[1735664633652,23.776884,198.73,198.67,9.75248924]
[1735664634792,23.776884,198.73,198.66,9.75248924]
[1735664635848,23.776884,198.73,198.64,9.75248924]
[1735664638244,23.776884,198.73,198.65,9.75248924]
[1735664638444,6.3632,198.74,198.69,9.75248924]
[1735664640153,23.776884,198.73,198.68,9.75248924]
[1735664640650,23.776884,198.73,198.69,9.75248924]
[1735664641071,6.3632,198.74,198.7,9.75248924]
[1735664641373,6.3632,198.74,198.72,9.75248924]
[1735664641755,6.3632,198.74,198.71,9.75248924]
[1735664643980,6.3632,198.74,198.7,9.75248924]
[1735664644784,23.776884,198.73,198.68,9.75248924]
[1735664645377,23.776884,198.73,198.69,9.75248924]
[1735664646591,23.776884,198.73,198.61,12.5872]
[1735664646760,23.776884,198.71,198.61,12.5872]
[1735664646958,23.776884,198.71,198.64,9.75248924]
[1735664647281,23.776884,198.71,198.63,9.75248924]
[1735664647455,23.776884,198.71,198.62,9.75248924]
[1735664647988,23.776884,198.69,198.62,9.75248924]
[1735664648559,23.776884,198.69,198.56,7.86499457]
[1735664648755,23.776884,198.69,198.65,9.75248924]
[1735664651195,6.2356,198.7,198.66,9.75248924]
[1735664651359,6.2356,198.7,198.69,9.75248924]
[1735664651557,6.1972,198.76,198.69,9.75248924]
[1735664652186,6.1972,198.76,198.7,9.75248924]
[1735664652484,6.1972,198.76,198.71,9.75248924]
[1735664652786,23.776884,198.75,198.71,9.75248924]
[1735664656483,23.776884,198.75,198.65,7.86499457]
[1735664656698,23.776884,198.75,198.7,9.75248924]
[1735664658396,23.776884,198.75,198.69,9.75248924]
[1735664659209,23.776884,198.75,198.65,7.86499457]
[1735664659367,23.776884,198.75,198.67,9.75248924]
[1735664660465,23.776884,198.75,198.68,9.75248924]
[1735664661768,23.776884,198.75,198.69,9.75248924]
[1735664661969,23.776884,198.75,198.7,9.75248924]
[1735664662475,6.1972,198.76,198.74,9.75248924]
[1735664662686,6.1972,198.76,198.73,9.75248924]
[1735664662878,6.1972,198.76,198.72,9.75248924]
[1735664663387,23.776884,198.75,198.71,9.75248924]
[1735664663687,23.776884,198.73,198.65,7.86499457]
[1735664663863,23.776884,198.73,198.66,9.75248924]
[1735664664290,23.776884,198.73,198.65,7.86499457]
[1735664664291,23.776884,198.73,198.65,9.75248924]
[1735664665201,23.776884,198.73,198.64,9.75248924]
[1735664665571,23.776884,198.73,198.65,9.75248924]
[1735664667592,23.776884,198.73,198.64,9.75248924]
[1735664669572,23.776884,198.73,198.65,9.75248924]
[1735664672285,23.776884,198.73,198.66,9.75248924]
[1735664672489,1.8358,198.74,198.61,45.62699457]
[1735664672685,1.8358,198.74,198.7,9.75248924]
[1735664674078,23.776884,198.75,198.71,9.75248924]
[1735664674272,6.1972,198.76,198.71,9.75248924]
[1735664674589,6.1972,198.76,198.72,9.75248924]
[1735664675984,6.1972,198.76,198.73,9.75248924]
[1735664676498,2.019,198.79,198.7,12.5817]
[1735664676697,3.78476981,198.88,198.7,12.5817]
[1735664676698,6.2547,198.81,198.77,9.75248924]
[1735664677477,6.2547,198.81,198.73,20.0]
[1735664677703,6.2547,198.81,198.76,9.75248924]
[1735664678907,6.2547,198.81,198.75,9.75248924]
[1735664679409,23.776884,198.8,198.69,7.86499457]
[1735664679575,23.776884,198.8,198.7,9.75248924]
[1735664680301,23.776884,198.8,198.7,15.23582817]
[1735664680504,23.776884,198.8,198.71,15.23582817]
[1735664680993,23.776884,198.8,198.72,15.23582817]
[1735664681308,6.2547,198.81,198.73,15.23582817]
[1735664681812,23.776884,198.8,198.73,15.23582817]
[1735664685308,23.776884,198.8,198.72,15.23582817]
[1735664685486,23.776884,198.8,198.71,15.23582817]
[1735664685804,23.776884,198.8,198.72,15.23582817]
[1735664685999,23.776884,198.8,198.73,15.23582817]
[1735664686392,23.776884,198.8,198.72,15.23582817]
[1735664687214,6.2547,198.81,198.76,15.23582817]
[1735664687422,6.2547,198.81,198.77,15.23582817]
[1735664689405,6.2547,198.81,198.76,15.23582817]
[1735664689919,23.776884,198.8,198.74,15.23582817]
[1735664690220,23.776884,198.8,198.73,15.23582817]
[1735664692209,23.776884,198.8,198.72,15.23582817]
[1735664695523,23.776884,198.78,198.69,15.23582817]
[1735664695708,23.776884,198.78,198.67,15.23582817]
[1735664695892,23.776884,198.76,198.66,23.10082274]
[1735664696299,23.776884,198.76,198.67,15.23582817]
[1735664697209,28.808284,198.76,198.62,7.86499457]
[1735664697503,23.776884,198.74,198.65,15.23582817]
[1735664698294,23.776884,198.74,198.67,15.23582817]
[1735664700325,23.776884,198.74,198.66,15.23582817]
[1735664702200,23.776884,198.74,198.62,12.5865]
[1735664702405,23.776884,198.74,198.66,9.75467384]
[1735664703019,23.776884,198.74,198.68,9.75467384]
[1735664703729,23.776884,198.74,198.69,9.75467384]
[1735664704522,23.776884,198.74,198.68,9.75467384]
[1735664706222,23.776884,198.74,198.67,9.75467384]
[1735664706597,23.776884,198.74,198.61,7.86499457]
[1735664706910,23.776884,198.74,198.6,40.95449536]
[1735664706911,23.776884,198.72,198.65,9.75467384]
[1735664707419,23.776884,198.72,198.64,9.75467384]
[1735664707619,23.776884,198.68,198.63,9.75467384]
[1735664707930,23.776884,198.7,198.63,9.75467384]
[1735664708303,23.776884,198.7,198.64,9.75467384]
[1735664710601,8.0851,198.71,198.67,9.75467384]
[1735664710796,8.0851,198.71,198.69,9.75467384]
[1735664712100,6.0716,198.71,198.7,9.75467384]
[1735664712616,6.4487,198.75,198.7,9.75467384]
[1735664712820,6.4487,198.75,198.74,9.75467384]
[1735664713013,17.84872541,198.89,198.74,9.75467384]
[1735664713014,1.8918,198.82,198.74,9.75467384]
[1735664713307,1.8918,198.82,198.78,9.75467384]
[1735664713628,23.776884,198.81,198.77,9.75467384]
[1735664714217,1.8918,198.82,198.77,15.22619592]
[1735664714804,23.776884,198.81,198.78,15.22619592]
[1735664715108,1.8918,198.82,198.78,15.22619592]
[1735664716331,1.8918,198.82,198.79,15.22619592]
[1735664716933,1.8918,198.82,198.78,15.22619592]
[1735664717224,1.8918,198.82,198.77,15.22619592]
[1735664717827,1.8918,198.82,198.78,15.22619592]
[1735664718129,1.8918,198.82,198.79,15.22619592]
[1735664719623,6.4487,198.83,198.8,15.22619592]
[1735664719815,6.4487,198.83,198.81,15.22619592]
[1735664720127,6.4487,198.83,198.8,15.22619592]
[1735664720933,6.4487,198.83,198.79,15.22619592]
[1735664721627,6.4487,198.83,198.78,15.22619592]
[1735664722020,23.776884,198.82,198.78,15.22619592]
[1735664722217,23.776884,198.82,198.75,15.22619592]
[1735664722532,23.776884,198.82,198.68,7.86499457]
[1735664722533,1.8918,198.81,198.72,15.22619592]
[1735664722718,23.776884,198.78,198.7,15.22619592]
[1735664722924,23.776884,198.78,198.69,15.22619592]
[1735664723106,23.776884,198.79,198.69,15.22619592]
[1735664723308,23.776884,198.79,198.7,15.22619592]
[1735664723627,23.776884,198.79,198.71,15.22619592]
[1735664725118,23.776884,198.79,198.72,15.22619592]
[1735664725307,23.776884,198.79,198.71,15.22619592]
[1735664727538,11.479,198.8,198.67,15.22619592]
[1735664727539,29.949484,198.76,198.67,15.22619592]
[1735664727710,25.747284,198.7,198.63,15.22619592]
[1735664727908,25.747284,198.7,198.62,15.22619592]
[1735664728114,25.747284,198.7,198.61,15.22619592]
[1735664730045,25.747284,198.7,198.62,15.22619592]
[1735664730240,25.747284,198.7,198.61,15.22619592]
[1735664730927,25.747284,198.7,198.62,15.22619592]
[1735664732549,25.747284,198.7,198.61,15.22619592]
[1735664733649,25.747284,198.7,198.56,14.5756]
[1735664733650,25.747284,198.7,198.62,15.22619592]
[1735664733945,25.747284,198.7,198.61,15.22619592]
[1735664735850,25.747284,198.7,198.62,15.22619592]
[1735664736640,25.747284,198.7,198.61,15.22619592]
[1735664737247,23.776884,198.66,198.61,15.22619592]
[1735664737438,23.776884,198.64,198.52,7.86499457]
[1735664737747,23.776884,198.64,198.57,15.22619592]
[1735664740331,23.776884,198.64,198.58,15.22619592]
[1735664740533,23.776884,198.64,198.59,15.22619592]
[1735664741242,23.776884,198.64,198.6,15.22619592]
[1735664741553,6.1726,198.68,198.63,15.22619592]
[1735664742336,6.1726,198.68,198.62,15.22619592]
[1735664743743,20.0,198.65,198.51,9.85019457]
[1735664743949,23.776884,198.62,198.56,15.22619592]
[1735664744248,23.776884,198.62,198.57,15.22619592]
[1735664744636,8.0103,198.63,198.59,15.22619592]
[1735664744835,6.1227,198.63,198.62,15.22619592]
[1735664745031,1.8876,198.67,198.62,15.22619592]
[1735664745260,6.1227,198.68,198.66,15.22619592]
[1735664745426,6.1227,198.68,198.65,15.22619592]
[1735664746643,6.1227,198.68,198.64,15.22619592]
[1735664747024,6.1227,198.68,198.65,15.22619592]
[1735664748146,6.1227,198.68,198.64,15.22619592]
[1735664749361,6.1227,198.68,198.62,15.22619592]
[1735664750335,6.1227,198.68,198.61,15.22619592]
[1735664750336,23.776884,198.67,198.61,15.22619592]
[1735664750739,23.776884,198.67,198.62,15.22619592]
[1735664751442,23.776884,198.67,198.63,15.22619592]
[1735664753471,6.1227,198.68,198.64,15.22619592]
[1735664754675,6.1227,198.68,198.66,15.22619592]
[1735664755401,6.1227,198.68,198.65,15.22619592]
[1735664756462,6.1227,198.68,198.65,9.75668562]
[1735664758945,1.8876,198.72,198.67,9.75668562]
[1735664759160,1.8876,198.72,198.68,9.75668562]
[1735664760053,6.4876,198.73,198.69,9.75668562]
[1735664760686,6.4876,198.73,198.7,9.75668562]
[1735664760979,6.4876,198.73,198.61,17.5869]
[1735664760980,6.4876,198.73,198.71,9.75668562]
[1735664762055,6.4876,198.73,198.69,9.75668562]
[1735664762272,6.4876,198.73,198.62,12.5868]
[1735664762450,6.4876,198.73,198.65,9.75668562]
[1735664762451,23.776884,198.72,198.65,9.75668562]
[1735664763154,23.776884,198.72,198.62,20.0]
[1735664763371,23.776884,198.72,198.63,9.75668562]
[1735664763571,23.776884,198.72,198.62,9.75668562]
[1735664764275,23.776884,198.66,198.53,20.45739457]
[1735664764473,23.776884,198.66,198.55,15.25548521]
[1735664764856,23.776884,198.66,198.56,15.25548521]
[1735664766555,20.0,198.63,198.55,15.25548521]
[1735664766860,23.776884,198.62,198.55,15.25548521]
[1735664767255,1.8726,198.59,198.52,15.25548521]
[1735664767467,23.776884,198.58,198.52,15.25548521]
[1735664767981,23.776884,198.58,198.51,15.25548521]
[1735664768170,23.776884,198.58,198.46,12.5963]
[1735664768369,23.776884,198.58,198.49,15.25548521]
[1735664768569,23.776884,198.58,198.44,7.86499457]